bitfinex/quotes_SOLUSD_20241213
["timestamp","ask_amount","ask_price","bid_price","bid_amount"]
[1734120391130,31.1912,223.39,223.29,8.47564764]
[1734120391427,31.1912,223.39,223.28,8.47564764]
[1734120392228,31.1912,223.39,223.31,8.47564764]
[1734120395937,31.1912,223.39,223.3,8.47564764]
[1734120398036,31.1912,223.39,223.31,8.47564764]
[1734120398412,31.1912,223.39,223.32,8.47564764]
[1734120400336,31.1912,223.39,223.28,23.902374]
[1734120400532,31.1912,223.39,223.32,8.47564764]
[1734120400832,31.1912,223.39,223.31,8.47564764]
[1734120401012,31.1912,223.39,223.32,0.12549]
[1734120401427,31.1912,223.39,223.3,8.47564764]
[1734120402130,31.1912,223.39,223.31,8.47564764]
[1734120402443,31.1912,223.39,223.28,0.25098]
[1734120402619,31.1912,223.39,223.33,8.47564764]
[1734120403219,31.1912,223.39,223.34,8.47564764]
[1734120403419,31.1912,223.39,223.33,8.47564764]
[1734120403621,31.1912,223.39,223.32,8.47564764]
[1734120404234,31.1912,223.39,223.32,0.12549]
[1734120407347,31.1912,223.39,223.31,8.47564764]
[1734120414849,31.1912,223.39,223.28,8.47564764]
[1734120415033,23.776884,223.38,223.24,8.47564764]
[1734120415345,20.0,223.35,223.24,8.47564764]
[1734120415645,20.0,223.35,223.25,0.12549]
[1734120416238,11.1936,223.34,223.24,8.47564764]
[1734120416538,11.1936,223.34,223.26,8.47564764]
[1734120417735,11.1936,223.34,223.25,0.12549]
[1734120418248,11.1936,223.34,223.25,8.60113764]
[1734120420450,11.1936,223.34,223.23,8.47564764]
[1734120422146,11.1936,223.34,223.24,8.47564764]
[1734120422950,11.1936,223.34,223.24,0.12549]
[1734120423149,11.1936,223.34,223.24,8.60113764]
[1734120427269,11.1936,223.34,223.24,8.47564764]
[1734120427458,11.1936,223.34,223.23,8.47564764]
[1734120428448,11.1936,223.34,223.21,0.12549]
[1734120428656,11.1936,223.34,223.21,8.47564764]
[1734120428657,20.0,223.31,223.21,8.47564764]
[1734120428861,20.0,223.31,223.19,8.47564764]
[1734120429059,20.0,223.31,223.2,8.47564764]
[1734120429875,20.0,223.31,223.2,0.12549]
[1734120430053,20.0,223.3,223.2,0.12549]
[1734120430963,20.0,223.3,223.13,7.9115]
[1734120431165,20.0,223.29,223.17,0.12549]
[1734120431350,20.0,223.29,223.19,8.47564764]
[1734120432170,11.1967,223.28,223.19,8.47564764]
[1734120432570,11.1967,223.28,223.18,8.47564764]
[1734120432948,11.1967,223.28,223.19,8.47564764]
[1734120433873,11.1967,223.28,223.2,8.47564764]
[1734120435102,11.1967,223.28,223.21,8.47564764]
[1734120435271,7.01674233,223.33,223.23,0.12549]
[1734120435457,1.77160368,223.34,223.27,8.47564764]
[1734120435458,7.01674233,223.34,223.27,8.47564764]
[1734120435657,7.01674233,223.36,223.27,8.47564764]
[1734120435858,7.01674233,223.37,223.27,8.47564764]
[1734120436057,7.01674233,223.37,223.26,8.47564764]
[1734120436360,11.1937,223.34,223.26,8.47564764]
[1734120436564,8.82433756,223.38,223.26,8.47564764]
[1734120436758,34.968984,223.37,223.26,8.47564764]
[1734120437170,20.0,223.34,223.26,8.47564764]
[1734120437669,20.0,223.34,223.24,8.47564764]
[1734120438178,20.0,223.34,223.24,8.60113764]
[1734120439776,20.0,223.34,223.25,8.47564764]
[1734120441057,20.0,223.34,223.26,8.47564764]
[1734120441282,20.0,223.34,223.25,8.47564764]
[1734120442278,7.01674233,223.38,223.3,8.47564764]
[1734120442598,11.1915,223.39,223.3,8.47564764]
[1734120443366,11.1915,223.39,223.26,20.0]
[1734120443577,11.1915,223.39,223.26,28.47564764]
[1734120443772,11.1915,223.39,223.27,8.47564764]
[1734120445775,11.1915,223.39,223.28,8.47564764]
[1734120446363,11.1915,223.39,223.3,8.47564764]
[1734120446565,11.1915,223.39,223.31,8.47564764]
[1734120446972,11.1915,223.39,223.3,8.47564764]
[1734120447484,20.0,223.4,223.29,8.47564764]
[1734120447681,20.0,223.39,223.29,8.47564764]
[1734120448389,20.0,223.39,223.31,8.47564764]
[1734120448680,20.0,223.39,223.3,8.47564764]
[1734120449071,20.0,223.39,223.28,8.47564764]
[1734120450676,20.0,223.39,223.29,8.47564764]
[1734120451692,20.0,223.39,223.26,0.25098]
[1734120451693,20.0,223.39,223.3,8.47564764]
[1734120452184,20.0,223.39,223.31,8.47564764]
[1734120452381,20.0,223.39,223.32,8.47564764]
[1734120452588,11.1896,223.42,223.32,8.47564764]
[1734120452781,11.1896,223.42,223.31,8.47564764]
[1734120452973,20.0,223.39,223.26,0.25098]
[1734120453173,20.0,223.38,223.24,20.0]
[1734120453388,20.0,223.38,223.27,8.47564764]
[1734120453609,20.0,223.38,223.28,8.47564764]
[1734120453766,20.0,223.38,223.27,8.47564764]
[1734120454377,31.1917,223.38,223.27,8.47564764]
[1734120455017,31.1917,223.38,223.29,8.47564764]
[1734120455790,31.1917,223.38,223.28,8.47564764]
[1734120456008,31.1917,223.38,223.27,8.47564764]
[1734120456778,31.1917,223.38,223.28,8.47564764]
[1734120457791,31.1917,223.38,223.31,8.47564764]
[1734120458794,31.1917,223.38,223.32,8.47564764]
[1734120458795,20.0,223.38,223.32,8.47564764]
[1734120458986,18.20684233,223.42,223.33,8.47564764]
[1734120459187,11.1901,223.42,223.33,8.47564764]
[1734120459577,11.1901,223.42,223.32,8.47564764]
[1734120460589,11.1906,223.4,223.28,8.47564764]
[1734120461098,11.1906,223.4,223.29,8.47564764]
[1734120463589,11.1906,223.4,223.28,8.47564764]
[1734120464778,20.0,223.37,223.21,35.76328174]
[1734120464983,20.0,223.36,223.25,8.47564764]
[1734120465697,20.0,223.37,223.25,8.47564764]
[1734120465892,20.0,223.37,223.26,8.47564764]
[1734120466107,31.1926,223.37,223.27,8.47564764]
[1734120468592,31.1926,223.37,223.28,8.47564764]
[1734120470911,31.1926,223.37,223.26,8.47564764]
[1734120471707,31.1926,223.37,223.27,8.47564764]
[1734120472104,31.1926,223.37,223.28,8.47564764]
[1734120473607,31.1926,223.37,223.27,8.47564764]
[1734120475414,31.1926,223.37,223.25,8.47564764]
[1734120475711,31.1926,223.37,223.26,8.47564764]
[1734120477490,11.1931,223.35,223.25,8.47564764]
[1734120477710,11.1931,223.35,223.26,8.47564764]
[1734120478210,11.1931,223.35,223.27,8.47564764]
[1734120479318,11.1931,223.35,223.21,26.80318174]
[1734120479529,11.1931,223.35,223.25,8.47564764]
[1734120480317,11.1931,223.35,223.24,8.47564764]
[1734120480500,20.0,223.32,223.24,8.47564764]
[1734120481999,31.1947,223.32,223.18,11.52918273]
[1734120482215,31.1947,223.32,223.21,8.47564764]
[1734120482391,31.1947,223.32,223.2,8.47564764]
[1734120482592,20.0,223.28,223.19,8.47564764]
[1734120483007,11.1947,223.32,223.19,0.25098]
[1734120483213,18.20964233,223.36,223.28,8.47564764]
[1734120483401,11.1929,223.36,223.28,8.47564764]
[1734120484215,11.1906,223.4,223.28,8.47564764]
[1734120484397,20.0,223.37,223.28,8.47564764]
[1734120485215,18.20734233,223.4,223.31,8.47564764]
[1734120485424,11.1906,223.4,223.32,8.47564764]
[1734120485716,11.1906,223.4,223.29,8.47564764]
[1734120486113,11.1906,223.4,223.3,8.47564764]
[1734120486307,11.1906,223.4,223.31,8.47564764]
[1734120486617,20.0,223.37,223.24,8.0199]
[1734120486914,11.1906,223.4,223.24,8.0199]
[1734120486915,20.0,223.36,223.26,8.47564764]
[1734120487127,20.0,223.35,223.18,19.27138273]
[1734120487421,20.0,223.35,223.21,8.47564764]
[1734120487651,20.0,223.34,223.21,8.47564764]
[1734120488003,20.0,223.34,223.22,8.47564764]
[1734120488300,20.0,223.34,223.18,19.27138273]
[1734120488504,20.0,223.33,223.22,8.47564764]
[1734120488816,11.1946,223.32,223.23,8.47564764]
[1734120489222,11.1946,223.32,223.22,8.47564764]
[1734120490038,11.1946,223.32,223.24,8.47564764]
[1734120490249,11.1946,223.32,223.23,8.47564764]
[1734120490400,11.1946,223.32,223.22,8.47564764]
[1734120490607,11.1946,223.32,223.23,8.47564764]
[1734120491316,11.1946,223.32,223.24,8.47564764]
[1734120491519,11.1946,223.32,223.23,8.47564764]
[1734120492715,11.1946,223.32,223.22,8.47564764]
[1734120493024,11.1946,223.32,223.23,8.47564764]
[1734120494132,18.20954233,223.36,223.23,0.25098]
[1734120494303,7.01674233,223.37,223.32,8.47564764]
[1734120494504,7.01674233,223.38,223.32,8.47564764]
[1734120494918,18.20784233,223.4,223.33,8.47564764]
[1734120495149,7.01674233,223.41,223.34,8.47564764]
[1734120495326,7.01674233,223.42,223.33,8.47564764]
[1734120495523,11.1896,223.42,223.32,8.47564764]
[1734120495823,7.01674233,223.43,223.36,8.47564764]
[1734120495998,7.01674233,223.44,223.34,8.47564764]
[1734120496401,7.01674233,223.45,223.35,8.47564764]
[1734120496903,20.0,223.42,223.34,8.47564764]
[1734120497098,20.0,223.41,223.28,20.0]
[1734120497303,20.0,223.41,223.32,8.47564764]
[1734120498412,31.1903,223.41,223.32,8.47564764]
[1734120501511,20.0,223.4,223.31,8.47564764]
[1734120501924,11.1911,223.39,223.26,23.902374]
[1734120502137,11.1911,223.39,223.29,8.47564764]
[1734120502522,11.1911,223.39,223.26,23.902374]
[1734120502836,11.1911,223.39,223.29,8.47564764]
[1734120503139,11.1911,223.39,223.31,8.47564764]
[1734120505139,7.01674233,223.47,223.38,8.47564764]
[1734120505330,7.01674233,223.48,223.44,8.47564764]
[1734120505530,7.01674233,223.48,223.41,8.47564764]
[1734120505731,7.01674233,223.48,223.43,8.47564764]
[1734120505932,7.01674233,223.47,223.43,8.47564764]
[1734120506123,11.1853,223.51,223.43,8.47564764]
[1734120506636,102.34350445,223.55,223.45,8.47564764]
[1734120506834,11.1833,223.55,223.47,8.47564764]
[1734120507040,0.5274509,223.57,223.47,8.47564764]
[1734120508155,0.5274509,223.57,223.48,8.47564764]
[1734120508452,0.5274509,223.57,223.41,33.90259056]
[1734120508453,0.5274509,223.57,223.49,8.47564764]
[1734120508921,0.5274509,223.57,223.48,8.47564764]
[1734120509451,20.0,223.56,223.48,13.20310087]
[1734120510517,20.0,223.56,223.46,19.81940087]
[1734120510940,20.0,223.56,223.44,14.77070087]
[1734120510941,11.1828,223.56,223.44,14.77070087]
[1734120511816,11.1828,223.56,223.46,13.20310087]
[1734120512219,11.1828,223.56,223.45,13.20310087]
[1734120513150,11.1828,223.56,223.46,13.20310087]
[1734120514542,11.1828,223.56,223.45,13.20310087]
[1734120515062,20.0,223.51,223.4,13.20310087]
[1734120515360,20.0,223.51,223.39,13.20310087]
[1734120515659,20.0,223.51,223.4,13.20310087]
[1734120516234,20.0,223.51,223.41,13.20310087]
[1734120516538,11.1852,223.51,223.41,13.20310087]
[1734120521175,11.1852,223.51,223.45,13.20310087]
[1734120521381,11.1835,223.55,223.47,13.20310087]
[1734120521662,11.1835,223.55,223.48,13.20310087]
[1734120522045,0.5274509,223.57,223.48,13.20310087]
[1734120522243,0.5274509,223.57,223.42,30.25098]
[1734120522244,0.5274509,223.57,223.47,13.20310087]
[1734120522674,20.0,223.56,223.47,13.20310087]
[1734120523145,20.0,223.56,223.48,13.20310087]
[1734120525545,20.0,223.56,223.47,13.20310087]
[1734120526360,11.1826,223.56,223.46,13.20310087]
[1734120527169,11.1826,223.56,223.45,13.20310087]
[1734120527371,11.1826,223.56,223.46,13.20310087]
[1734120527560,11.1826,223.56,223.45,13.20310087]
[1734120527967,11.1826,223.56,223.46,13.20310087]
[1734120529464,11.1826,223.56,223.44,13.20310087]
[1734120531169,11.1826,223.56,223.45,13.20310087]
[1734120531475,11.1826,223.56,223.46,13.20310087]
[1734120532590,11.1826,223.56,223.47,13.20310087]
[1734120532960,11.1826,223.56,223.45,13.20310087]
[1734120533176,11.1826,223.56,223.45,8.45217478]
[1734120534072,11.1826,223.56,223.49,8.45217478]
[1734120534572,11.1826,223.56,223.47,8.45217478]
[1734120535663,11.1826,223.56,223.46,8.45217478]
[1734120536179,11.1826,223.56,223.47,8.45217478]
[1734120536789,11.1826,223.56,223.49,8.45217478]
[1734120539988,11.1826,223.56,223.48,8.45217478]
[1734120541172,11.1826,223.56,223.47,8.45217478]
[1734120542181,11.1826,223.56,223.46,8.45217478]
[1734120542684,11.1826,223.56,223.47,8.45217478]
[1734120543769,11.1826,223.56,223.46,8.45217478]
[1734120543985,11.1826,223.56,223.45,8.45217478]
[1734120544859,20.0,223.52,223.4,8.45217478]
[1734120545059,20.0,223.52,223.38,7.9322]
[1734120545280,20.0,223.52,223.45,8.45217478]
[1734120545483,20.0,223.53,223.46,8.45217478]
[1734120545781,11.1826,223.56,223.49,8.45217478]
[1734120546156,0.5274509,223.57,223.49,8.45217478]
[1734120546157,20.5274509,223.57,223.49,8.45217478]
[1734120549065,20.5274509,223.57,223.5,8.45217478]
[1734120549271,20.5274509,223.57,223.49,8.45217478]
[1734120550000,0.5274509,223.57,223.51,8.45217478]
[1734120551373,0.5274509,223.57,223.5,8.45217478]
[1734120551809,0.5274509,223.57,223.51,8.45217478]
[1734120557104,0.5274509,223.57,223.5,8.45217478]
[1734120557504,20.5274509,223.57,223.5,8.45217478]
[1734120558119,0.5274509,223.57,223.5,8.45217478]
[1734120559323,0.5274509,223.57,223.52,8.45217478]
[1734120561096,0.5274509,223.57,223.54,8.45217478]
[1734120561313,0.5274509,223.57,223.53,8.45217478]
[1734120562219,0.5274509,223.57,223.55,8.45217478]
[1734120565923,0.5274509,223.57,223.56,8.45217478]
[1734120570111,0.5274509,223.57,223.56,8.82864478]
[1734120571126,0.5274509,223.57,223.56,8.57766478]
[1734120571391,0.5274509,223.57,223.56,8.45217478]
[1734120572635,0.5274509,223.57,223.56,8.57766478]
[1734120575813,0.5274509,223.57,223.56,8.82864478]
[1734120577842,0.5274509,223.57,223.56,0.37647]
[1734120578025,0.5274509,223.57,223.56,8.82864478]
[1734120588045,0.5274509,223.57,223.56,62.60552878]
[1734120591065,0.5274509,223.57,223.56,76.36173398]
[1734120591348,11.1739,223.74,223.65,8.45217478]
[1734120591857,11.0739,223.74,223.65,8.45217478]
[1734120592154,25.55020119,223.77,223.64,8.45217478]
[1734120592332,20.0,223.74,223.62,8.45217478]
[1734120592656,20.0,223.74,223.63,8.57766478]
[1734120593242,31.1739,223.74,223.63,8.57766478]
[1734120594148,31.1739,223.74,223.64,8.45217478]
[1734120596594,31.1739,223.74,223.63,8.57766478]
[1734120596798,31.1739,223.74,223.61,8.45217478]
[1734120597839,31.1739,223.74,223.65,8.45217478]
[1734120598051,31.1739,223.74,223.63,8.45217478]
[1734120598540,31.1739,223.74,223.64,8.45217478]
[1734120599894,22.3434,223.78,223.6,0.25098]
[1734120599895,31.1721,223.78,223.67,8.45217478]
[1734120600152,31.1721,223.78,223.67,0.12549]
[1734120601532,31.1721,223.78,223.67,8.57766478]
[1734120601743,31.1721,223.78,223.68,8.45217478]
[1734120602763,31.1721,223.78,223.63,7.5371]
[1734120602940,20.0,223.77,223.64,8.57766478]
[1734120603443,20.0,223.77,223.66,8.45217478]
[1734120603643,20.0,223.77,223.65,8.57766478]
[1734120603875,20.0,223.77,223.64,8.45217478]
[1734120604048,11.1726,223.76,223.64,8.45217478]
[1734120604647,20.0,223.73,223.62,8.45217478]
[1734120604853,20.0,223.72,223.62,8.45217478]
[1734120606156,31.1751,223.72,223.62,8.45217478]
[1734120606455,31.1751,223.72,223.59,0.12549]
[1734120606657,31.1751,223.72,223.62,8.45217478]
[1734120611672,31.1751,223.72,223.58,7.6527]
[1734120611880,31.1751,223.72,223.61,8.45217478]
[1734120612569,31.1751,223.72,223.65,8.45217478]
[1734120613167,11.1732,223.75,223.68,8.45217478]
[1734120613466,11.1732,223.75,223.67,8.45217478]
[1734120614174,11.6989509,223.79,223.69,8.45217478]
[1734120614367,0.12549,223.78,223.61,20.0]
[1734120614552,34.0412509,223.79,223.61,20.0]
[1734120614753,34.0412509,223.79,223.65,8.45217478]
[1734120614965,34.0412509,223.79,223.66,8.45217478]
[1734120615468,31.1729,223.76,223.66,8.45217478]
[1734120617956,20.5274509,223.79,223.68,8.45217478]
[1734120618162,20.0,223.77,223.65,8.45217478]
[1734120618767,20.5274509,223.79,223.65,8.45217478]
[1734120619174,34.948484,223.78,223.66,8.45217478]
[1734120620493,34.948484,223.78,223.65,8.45217478]
[1734120622816,34.948484,223.78,223.62,20.25098]
[1734120622817,34.948484,223.78,223.67,8.45217478]
[1734120622968,34.948484,223.78,223.62,20.25098]
[1734120622969,34.948484,223.78,223.62,20.12549]
[1734120623165,34.948484,223.78,223.65,8.45217478]
[1734120624479,34.948484,223.78,223.66,8.45217478]
[1734120624677,34.948484,223.78,223.65,8.45217478]
[1734120625072,11.1716,223.78,223.67,8.45217478]
[1734120625270,11.1716,223.78,223.66,8.45217478]
[1734120625859,11.1716,223.78,223.63,24.027864]
[1734120625860,11.1716,223.78,223.69,8.45217478]
[1734120626084,11.1716,223.78,223.68,8.45217478]
[1734120626287,11.1716,223.78,223.67,8.45217478]
[1734120627993,11.1716,223.78,223.68,8.45217478]
[1734120634096,20.0,223.78,223.72,8.45217478]
[1734120635403,20.0,223.78,223.7,8.45217478]
[1734120636010,0.5274509,223.79,223.72,8.45217478]
[1734120636512,0.5274509,223.79,223.74,8.45217478]
[1734120636687,0.5274509,223.79,223.75,8.45217478]
[1734120637000,0.5274509,223.79,223.74,8.45217478]
[1734120640817,0.5274509,223.79,223.75,8.45217478]
[1734120642542,0.5274509,223.79,223.74,8.45217478]
[1734120643079,0.5274509,223.79,223.76,8.45217478]
[1734120643509,0.5274509,223.79,223.77,0.12549]
[1734120643814,0.5274509,223.79,223.78,8.45217478]
[1734120644189,0.5274509,223.79,223.77,8.57766478]
[1734120645297,0.5274509,223.79,223.78,8.70315478]
[1734120646312,0.5274509,223.79,223.78,8.82864478]
[1734120662617,0.5274509,223.79,223.76,0.67008554]
[1734120662833,0.5274509,223.79,223.76,8.45217478]
[1734120663039,0.5274509,223.79,223.74,8.45217478]
[1734120663333,0.5274509,223.79,223.75,8.45217478]
[1734120664134,0.5274509,223.79,223.72,20.0]
[1734120664352,0.5274509,223.79,223.75,8.45217478]
[1734120664511,0.5274509,223.79,223.72,20.0]
[1734120664821,0.5274509,223.79,223.73,8.45217478]
[1734120666132,0.5274509,223.79,223.71,8.45217478]
[1734120666431,0.5274509,223.79,223.73,8.45217478]
[1734120671055,0.5274509,223.79,223.72,8.45217478]
[1734120671239,11.1716,223.78,223.69,11.50256605]
[1734120671647,11.1716,223.78,223.69,19.95474083]
[1734120672250,11.1716,223.78,223.69,11.50256605]
[1734120672627,23.776884,223.77,223.69,11.50256605]
[1734120673451,11.1726,223.76,223.69,11.50256605]
[1734120673753,11.1726,223.76,223.66,8.45217478]
[1734120673754,23.776884,223.75,223.66,8.45217478]
[1734120674439,11.1736,223.74,223.66,8.45217478]
[1734120674653,11.1736,223.74,223.67,8.45217478]
[1734120674835,11.1736,223.74,223.69,8.45217478]
[1734120676043,20.0,223.75,223.69,8.45217478]
[1734120677755,34.948484,223.78,223.69,8.45217478]
[1734120677937,11.1716,223.78,223.7,8.45217478]
[1734120678254,11.1716,223.78,223.72,8.45217478]
[1734120678431,20.0,223.75,223.72,8.45217478]
[1734120679068,11.1716,223.78,223.72,8.45217478]
[1734120679243,0.5274509,223.79,223.75,8.45217478]
[1734120679948,0.5274509,223.79,223.73,8.45217478]
[1734120680459,11.6987509,223.79,223.7,8.45217478]
[1734120681156,11.6987509,223.79,223.71,8.45217478]
[1734120681347,11.6987509,223.79,223.7,8.45217478]
[1734120682551,11.6987509,223.79,223.68,11.50338859]
[1734120682874,11.6987509,223.79,223.69,8.45217478]
[1734120684449,23.776884,223.78,223.68,11.50338859]
[1734120684658,23.776884,223.78,223.68,19.95556337]
[1734120686051,11.1721,223.77,223.68,19.95556337]
[1734120686673,20.0,223.74,223.68,11.50338859]
[1734120687156,31.1737,223.74,223.68,11.50338859]
[1734120689792,20.0,223.75,223.7,8.45217478]
[1734120690137,20.0,223.75,223.68,11.50338859]
[1734120690851,31.1736,223.75,223.68,11.50338859]
[1734120694155,31.1736,223.75,223.69,8.45217478]
[1734120694545,31.1736,223.75,223.68,11.50338859]
[1734120696883,31.1736,223.75,223.68,19.95556337]
[1734120697570,11.1736,223.75,223.69,8.45217478]
[1734120697778,11.6990509,223.79,223.71,8.45217478]
[1734120699571,11.6990509,223.79,223.72,8.45217478]
[1734120699767,0.5274509,223.79,223.74,8.45217478]
[1734120700151,0.5274509,223.79,223.75,8.45217478]
[1734120702074,0.5274509,223.79,223.73,8.45217478]
[1734120702272,0.5274509,223.79,223.72,8.45217478]
[1734120702461,0.5274509,223.79,223.71,8.45217478]
[1734120703173,11.6987509,223.79,223.7,8.45217478]
[1734120705058,11.6987509,223.79,223.68,19.23098859]
[1734120705259,11.6987509,223.79,223.7,8.45217478]
[1734120705766,11.6987509,223.79,223.69,8.45217478]
[1734120709985,11.6987509,223.79,223.68,27.68316337]
[1734120710186,20.0,223.76,223.68,11.50338859]
[1734120711183,20.0,223.76,223.68,10.50338859]
[1734120711383,31.1727,223.76,223.68,10.50338859]
[1734120714901,31.1727,223.76,223.68,18.95556337]
[1734120715076,20.0,223.77,223.7,8.45217478]
[1734120715283,0.5274509,223.79,223.71,8.45217478]
[1734120716098,0.5274509,223.79,223.7,8.45217478]
[1734120716784,0.5274509,223.79,223.71,8.45217478]
[1734120719903,0.5274509,223.79,223.72,8.45217478]
[1734120723786,0.5274509,223.79,223.71,8.45217478]
[1734120724792,0.5274509,223.79,223.72,8.45217478]
[1734120727000,0.5274509,223.79,223.73,8.45217478]
[1734120727202,0.5274509,223.79,223.75,8.45217478]
[1734120727380,0.5274509,223.79,223.76,8.45217478]
[1734120728385,0.5274509,223.79,223.77,8.45217478]
[1734120729302,0.5274509,223.79,223.76,8.45217478]
[1734120729675,0.5274509,223.79,223.74,8.45217478]
[1734120729905,0.5274509,223.79,223.73,8.45217478]
[1734120730283,0.5274509,223.79,223.74,8.45217478]
[1734120732011,0.5274509,223.79,223.75,8.45217478]
[1734120734582,0.5274509,223.79,223.76,8.45217478]
[1734120734901,0.5274509,223.79,223.75,8.45217478]
[1734120735808,0.5274509,223.79,223.74,8.45217478]
[1734120736489,0.5274509,223.79,223.71,0.12549]
[1734120736696,0.5274509,223.79,223.7,16.20117478]
[1734120736906,0.5274509,223.79,223.7,7.749]
[1734120737109,0.5274509,223.79,223.7,16.20117478]
[1734120738007,0.5274509,223.79,223.71,8.45217478]
[1734120738386,0.5274509,223.79,223.72,8.45217478]
[1734120740411,0.5274509,223.79,223.7,16.20117478]
[1734120740585,31.6990509,223.79,223.7,7.749]
[1734120740786,20.0,223.78,223.7,7.749]
[1734120741291,18.72712602,223.79,223.68,8.45217478]
[1734120741718,11.6990509,223.79,223.68,8.45217478]
[1734120743211,11.6990509,223.79,223.69,8.45217478]
[1734120744308,11.6990509,223.79,223.7,8.45217478]
[1734120745101,11.6990509,223.79,223.71,8.45217478]
[1734120745292,11.6990509,223.79,223.7,8.45217478]
[1734120746207,11.6990509,223.79,223.69,8.45217478]
[1734120746389,11.6990509,223.79,223.69,8.57766478]
[1734120747506,11.6990509,223.79,223.68,8.45217478]
[1734120749015,11.6990509,223.79,223.67,8.45217478]
[1734120749588,20.0,223.76,223.65,16.48197478]
[1734120750792,11.1731,223.75,223.65,14.82357478]
[1734120751108,11.1731,223.75,223.65,8.45217478]
[1734120751360,11.1731,223.75,223.63,8.45217478]
[1734120752916,11.1731,223.75,223.64,8.45217478]
[1734120753607,11.1731,223.75,223.65,8.45217478]
[1734120757225,11.1731,223.75,223.64,8.45217478]
[1734120763920,11.1731,223.75,223.66,8.45217478]
[1734120764125,11.1731,223.75,223.68,8.45217478]
[1734120764521,11.1731,223.75,223.67,8.45217478]
[1734120765108,11.1731,223.75,223.66,8.45217478]
[1734120765310,11.1731,223.75,223.65,8.57766478]
[1734120765511,11.1731,223.75,223.62,0.25098]
[1734120765725,11.1731,223.75,223.65,8.45217478]
[1734120765926,11.1731,223.75,223.64,8.45217478]
[1734120766434,11.1731,223.75,223.65,7.95217478]
[1734120766730,11.1731,223.75,223.66,8.45217478]
[1734120770851,11.1731,223.75,223.67,8.45217478]
[1734120771331,11.1731,223.75,223.66,8.45217478]
[1734120776341,11.1731,223.75,223.67,8.45217478]
[1734120777046,11.1731,223.75,223.66,8.45217478]
[1734120778330,11.1731,223.75,223.65,8.45217478]
[1734120780946,11.1731,223.75,223.65,0.12549]
[1734120781244,11.1731,223.75,223.64,20.0]
[1734120781625,11.1731,223.75,223.62,8.70315478]
[1734120782025,11.1731,223.75,223.61,11.50724584]
[1734120782242,23.776884,223.74,223.61,11.50724584]
[1734120782667,20.0,223.71,223.61,11.50724584]
[1734120783950,11.1756,223.7,223.61,11.50724584]
[1734120786652,11.1756,223.7,223.61,19.95942062]
[1734120786854,11.1756,223.7,223.63,8.45217478]
[1734120788439,20.0,223.72,223.63,8.45217478]
[1734120789339,20.0,223.72,223.62,8.45217478]
[1734120789536,31.175,223.72,223.62,8.45217478]
[1734120790651,31.175,223.72,223.61,19.95942062]
[1734120792647,31.175,223.72,223.61,11.50724584]
[1734120793536,31.175,223.72,223.6,8.45217478]
[1734120793745,31.175,223.72,223.61,0.12549]
[1734120794138,31.175,223.72,223.61,8.57766478]
[1734120794551,31.175,223.72,223.62,8.45217478]
[1734120795059,31.175,223.72,223.61,8.45217478]
[1734120795645,31.175,223.72,223.59,0.12549]
[1734120795839,20.0,223.68,223.57,17.43830222]
[1734120796039,20.0,223.68,223.52,2.70164522]
[1734120796241,20.0,223.64,223.52,0.12549]
[1734120796761,20.0,223.64,223.51,14.67177478]
[1734120796949,20.0,223.64,223.51,6.2196]
[1734120797151,20.0,223.64,223.49,10.10457478]
[1734120797359,24.027864,223.63,223.49,1.6524]
[1734120797558,20.0,223.6,223.49,1.6524]
[1734120797975,11.1811,223.59,223.49,1.6524]
[1734120799671,11.1811,223.59,223.48,8.45217478]
[1734120801066,11.1811,223.59,223.45,6.2196]
[1734120801280,20.0,223.55,223.42,8.45217478]
[1734120801662,20.0,223.55,223.41,8.45217478]
[1734120802354,20.0,223.55,223.42,8.45217478]
[1734120803060,11.1836,223.54,223.42,8.45217478]
[1734120804468,11.1836,223.54,223.41,8.45217478]
[1734120805658,11.1836,223.54,223.42,8.45217478]
[1734120808155,11.1836,223.54,223.43,8.45217478]
[1734120808388,20.0,223.55,223.47,8.45217478]
[1734120808558,11.182,223.58,223.47,8.45217478]
[1734120808953,11.182,223.58,223.46,8.45217478]
[1734120816059,11.182,223.58,223.42,24.027864]
[1734120816272,11.182,223.58,223.46,0.12549]
[1734120817494,11.182,223.58,223.4,6.4466]
[1734120817495,20.0,223.54,223.4,6.4466]